[Event "*** Titled Tuesday Blitz"]
[Site "Chess.com"]
[Date "2020.01.07"]
[Round "8"]
[White "Sebastian"]
[Black "Alexander_Moskalenko"]
[Result "1-0"]
[WhiteElo "2963"]
[BlackElo "2815"]
[TimeControl "180+2"]
[EndTime "14:56:41 PST"]
[Termination "Sebastian won by resignation"]

1. e4 {[%clk 0:03:01.9]} 1... e5 {[%clk 0:03:01.5]} 2. Nf3 {[%clk 0:03:02.6]}
2... Nc6 {[%clk 0:03:02.7]} 3. Bc4 {[%clk 0:03:04.1]} 3... Nf6 {[%clk
0:03:00.2]} 4. d3 {[%clk 0:03:04.6]} 4... Bc5 {[%clk 0:02:56.6]} 5. c3 {[%clk
0:03:05.3]} 5... O-O {[%clk 0:02:56.5]} 6. Nbd2 {[%clk 0:03:06.5]} 6... d6
{[%clk 0:02:55.4]} 7. O-O {[%clk 0:03:07]} 7... a5 {[%clk 0:02:53.3]} 8. h3
{[%clk 0:03:07.3]} 8... h6 {[%clk 0:02:52.2]} 9. Re1 {[%clk 0:03:08.1]} 9... Be6
{[%clk 0:02:53.7]} 10. Bb5 {[%clk 0:03:09.5]} 10... Qb8 {[%clk 0:02:51.6]} 11.
Bxc6 {[%clk 0:03:08.4]} 11... bxc6 {[%clk 0:02:52.7]} 12. d4 {[%clk 0:03:10.2]}
12... exd4 {[%clk 0:02:51]} 13. cxd4 {[%clk 0:03:12.1]} 13... Bb4 {[%clk
0:02:38.1]} 14. a3 {[%clk 0:03:12.8]} 14... Bxd2 {[%clk 0:02:36.2]} 15. Nxd2
{[%clk 0:03:14.7]} 15... a4 {[%clk 0:02:23]} 16. Re3 {[%clk 0:03:12.9]} 16...
Re8 {[%clk 0:02:23.3]} 17. Nf1 {[%clk 0:03:08.6]} 17... Bb3 {[%clk 0:02:20.8]}
18. Qe1 {[%clk 0:03:08.4]} 18... Qb6 {[%clk 0:01:59.9]} 19. Ng3 {[%clk
0:02:23.1]} 19... c5 {[%clk 0:01:51.2]} 20. dxc5 {[%clk 0:01:54.2]} 20... Qxc5
{[%clk 0:01:53.1]} 21. Bd2 {[%clk 0:01:55.8]} 21... d5 {[%clk 0:01:37.1]} 22.
Rc1 {[%clk 0:01:55.8]} 22... Qb6 {[%clk 0:01:33.4]} 23. exd5 {[%clk 0:01:39.8]}
23... Bxd5 {[%clk 0:01:33.9]} 24. Nf5 {[%clk 0:01:41.1]} 24... Be6 {[%clk
0:01:22.9]} 25. Nxg7 {[%clk 0:01:33.2]} 25... Kxg7 {[%clk 0:01:22.5]} 26. Bc3
{[%clk 0:01:34.2]} 26... Kh7 {[%clk 0:01:08.2]} 27. Bxf6 {[%clk 0:01:31.5]}
27... Rg8 {[%clk 0:01:10.1]} 28. Be5 {[%clk 0:01:12]} 28... c6 {[%clk
0:01:06.7]} 29. Qc3 {[%clk 0:01:03.6]} 29... Rg6 {[%clk 0:01:05.5]} 30. Rg3
{[%clk 0:01:02.3]} 30... Rxg3 {[%clk 0:01:03.1]} 31. Bxg3 {[%clk 0:00:58.4]}
31... Bd5 {[%clk 0:01:04.5]} 32. Qd3+ {[%clk 0:00:54.5]} 32... Kg8 {[%clk
0:01:00.2]} 33. Be5 {[%clk 0:00:55.9]} 33... Qd8 {[%clk 0:00:55.8]} 34. Qg3+
{[%clk 0:00:30.7]} 34... Qg5 {[%clk 0:00:56.9]} 35. Rc3 {[%clk 0:00:32.3]} 35...
Kh7 {[%clk 0:00:45.2]} 36. Qxg5 {[%clk 0:00:13]} 36... hxg5 {[%clk 0:00:47.1]}
37. Rc5 {[%clk 0:00:08.1]} 37... Kg6 {[%clk 0:00:40.7]} 38. f3 {[%clk
0:00:09.2]} 38... f6 {[%clk 0:00:40.4]} 39. Bc3 {[%clk 0:00:09.1]} 39... Kf5
{[%clk 0:00:34.3]} 40. Kf2 {[%clk 0:00:10.4]} 40... Ke6 {[%clk 0:00:36]} 41. Bb4
{[%clk 0:00:11.4]} 41... Kf5 {[%clk 0:00:31]} 42. Rc2 {[%clk 0:00:11.4]} 42...
Re8 {[%clk 0:00:30.7]} 43. Rd2 {[%clk 0:00:09.9]} 43... Bc4 {[%clk 0:00:11.1]}
44. Bc3 {[%clk 0:00:10.6]} 44... Re6 {[%clk 0:00:11.5]} 45. Rd4 {[%clk
0:00:11.1]} 45... Bb5 {[%clk 0:00:11.3]} 46. Kg3 {[%clk 0:00:12.4]} 46... Kg6
{[%clk 0:00:13]} 47. h4 {[%clk 0:00:12.2]} 47... gxh4+ {[%clk 0:00:12.7]} 48.
Kxh4 {[%clk 0:00:13.4]} 48... Kf7 {[%clk 0:00:10.8]} 49. g4 {[%clk 0:00:12.2]}
49... Re8 {[%clk 0:00:10.8]} 50. Kg3 {[%clk 0:00:12.7]} 50... Re3 {[%clk
0:00:11.3]} 51. Rf4 {[%clk 0:00:10.8]} 51... Re6 {[%clk 0:00:09.2]} 52. g5
{[%clk 0:00:11.8]} 52... Kg6 {[%clk 0:00:10]} 53. gxf6 {[%clk 0:00:12.9]} 53...
Kf7 {[%clk 0:00:11.5]} 54. Rg4 {[%clk 0:00:13.9]} 54... Re8 {[%clk 0:00:10]} 55.
Rg7+ {[%clk 0:00:14.7]} 55... Ke6 {[%clk 0:00:10.1]} 56. Kf4 {[%clk 0:00:16.1]}
56... Bc4 {[%clk 0:00:10.4]} 57. Rc7 {[%clk 0:00:15.6]} 57... Bd5 {[%clk
0:00:09]} 58. Ra7 {[%clk 0:00:16.7]} 58... Rh8 {[%clk 0:00:06.9]} 59. Re7+
{[%clk 0:00:15.8]} 59... Kd6 {[%clk 0:00:05.7]} 60. Be5+ {[%clk 0:00:17.4]}
60... Kc5 {[%clk 0:00:07.2]} 61. Rd7 {[%clk 0:00:15.5]} 61... Rh3 {[%clk
0:00:07]} 62. Rxd5+ {[%clk 0:00:09.5]} 62... Kxd5 {[%clk 0:00:07.6]} 63. f7
{[%clk 0:00:10.6]} 63... Rh4+ {[%clk 0:00:09]} 64. Kg5 {[%clk 0:00:11.1]} 1-0

[Event "*** Titled Tuesday Blitz"]
[Site "Chess.com"]
[Date "2020.01.07"]
[Round "8"]
[White "viktorskliarov"]
[Black "snowlord"]
[Result "1/2-1/2"]
[WhiteElo "2623"]
[BlackElo "2764"]
[TimeControl "180+2"]
[EndTime "14:56:57 PST"]
[Termination "Game drawn by repetition"]

1. e4 {[%clk 0:03:01.9]} 1... c5 {[%clk 0:03:00.4]} 2. Nf3 {[%clk 0:03:02.4]}
2... d6 {[%clk 0:03:01.7]} 3. d4 {[%clk 0:03:03.3]} 3... cxd4 {[%clk 0:03:03.6]}
4. Qxd4 {[%clk 0:03:04.7]} 4... Nf6 {[%clk 0:03:04.5]} 5. Nc3 {[%clk 0:03:05.4]}
5... Bd7 {[%clk 0:02:53.1]} 6. e5 {[%clk 0:03:06.4]} 6... Nc6 {[%clk 0:02:52.7]}
7. Qf4 {[%clk 0:03:07.2]} 7... dxe5 {[%clk 0:02:40.4]} 8. Nxe5 {[%clk
0:03:07.8]} 8... Nxe5 {[%clk 0:01:49.1]} 9. Qxe5 {[%clk 0:03:07.7]} 9... a6
{[%clk 0:01:50.6]} 10. Be2 {[%clk 0:02:52]} 10... e6 {[%clk 0:01:44.8]} 11. Bf3
{[%clk 0:02:46.7]} 11... Qc8 {[%clk 0:01:39.4]} 12. g4 {[%clk 0:02:35.8]} 12...
Bc6 {[%clk 0:01:38.5]} 13. Bxc6+ {[%clk 0:02:13.1]} 13... Qxc6 {[%clk
0:01:38.5]} 14. Rg1 {[%clk 0:02:13.8]} 14... Bd6 {[%clk 0:01:25.1]} 15. Qe2
{[%clk 0:02:11.4]} 15... O-O-O {[%clk 0:01:15.4]} 16. Bd2 {[%clk 0:01:54.3]}
16... Bxh2 {[%clk 0:00:53.6]} 17. Rf1 {[%clk 0:01:54.8]} 17... Nd5 {[%clk
0:00:27.5]} 18. O-O-O {[%clk 0:01:51]} 18... Bf4 {[%clk 0:00:23.2]} 19. Bxf4
{[%clk 0:01:38.7]} 19... Nxf4 {[%clk 0:00:25.1]} 20. Qe5 {[%clk 0:01:39.3]}
20... Qc4 {[%clk 0:00:08.5]} 21. Qxg7 {[%clk 0:01:32.9]} 21... f5 {[%clk
0:00:09.6]} 22. gxf5 {[%clk 0:01:31.1]} 22... exf5 {[%clk 0:00:11.5]} 23. Qe5
{[%clk 0:01:27]} 23... Rhf8 {[%clk 0:00:05.7]} 24. Rxd8+ {[%clk 0:01:26.7]}
24... Rxd8 {[%clk 0:00:07.6]} 25. Qxf5+ {[%clk 0:01:27.6]} 25... Kb8 {[%clk
0:00:08.3]} 26. Re1 {[%clk 0:01:25.6]} 26... h5 {[%clk 0:00:07.4]} 27. Qe5+
{[%clk 0:01:22.4]} 27... Ka7 {[%clk 0:00:05.3]} 28. b3 {[%clk 0:01:16]} 28...
Qd4 {[%clk 0:00:04.8]} 29. Qxd4+ {[%clk 0:01:09.6]} 29... Rxd4 {[%clk
0:00:06.7]} 30. Re7 {[%clk 0:00:49.3]} 30... h4 {[%clk 0:00:06]} 31. Rh7 {[%clk
0:00:49.4]} 31... h3 {[%clk 0:00:03.7]} 32. a4 {[%clk 0:00:50]} 32... Rd6 {[%clk
0:00:04.6]} 33. a5 {[%clk 0:00:44.4]} 33... Rg6 {[%clk 0:00:05.1]} 34. Rh4
{[%clk 0:00:26.1]} 34... Rf6 {[%clk 0:00:04.3]} 35. Kb2 {[%clk 0:00:23.9]} 35...
Kb8 {[%clk 0:00:05]} 36. Rh7 {[%clk 0:00:22.3]} 36... Rg6 {[%clk 0:00:04.9]} 37.
Rh4 {[%clk 0:00:20.2]} 37... Rf6 {[%clk 0:00:06]} 38. Ne4 {[%clk 0:00:21.4]}
38... Rf8 {[%clk 0:00:06.3]} 39. Ng5 {[%clk 0:00:20.4]} 39... Rf5 {[%clk
0:00:05.6]} 40. Nxh3 {[%clk 0:00:21.2]} 40... Nxh3 {[%clk 0:00:06.7]} 41. Rxh3
{[%clk 0:00:22.4]} 41... Rxf2 {[%clk 0:00:08.4]} 42. b4 {[%clk 0:00:23.4]} 42...
Rf5 {[%clk 0:00:08.1]} 43. Kb3 {[%clk 0:00:24.1]} 43... Kc7 {[%clk 0:00:08.5]}
44. Rh6 {[%clk 0:00:24.7]} 44... Rf3+ {[%clk 0:00:08.7]} 45. c3 {[%clk
0:00:25.8]} 45... Rg3 {[%clk 0:00:09.8]} 46. Rb6 {[%clk 0:00:25.6]} 46... Rh3
{[%clk 0:00:10.2]} 47. Re6 {[%clk 0:00:24.8]} 47... Rg3 {[%clk 0:00:11.2]} 48.
Kc4 {[%clk 0:00:24.3]} 48... Rh3 {[%clk 0:00:10.9]} 49. Kd4 {[%clk 0:00:24.2]}
49... Kd7 {[%clk 0:00:11.6]} 50. Re4 {[%clk 0:00:23]} 50... Kc7 {[%clk
0:00:11.9]} 51. c4 {[%clk 0:00:23.9]} 51... Rh5 {[%clk 0:00:11.3]} 52. Re5
{[%clk 0:00:24.6]} 52... Rh6 {[%clk 0:00:10.8]} 53. b5 {[%clk 0:00:23.9]} 53...
axb5 {[%clk 0:00:09.9]} 54. cxb5 {[%clk 0:00:24.7]} 54... Rh1 {[%clk 0:00:08.3]}
55. Re7+ {[%clk 0:00:24.4]} 55... Kb8 {[%clk 0:00:09]} 56. Kd5 {[%clk 0:00:24]}
56... Rh8 {[%clk 0:00:09.4]} 57. Rd7 {[%clk 0:00:16.4]} 57... Rh5+ {[%clk
0:00:10.3]} 58. Kc4 {[%clk 0:00:17.5]} 58... Rh8 {[%clk 0:00:10.8]} 59. Kc5
{[%clk 0:00:17.5]} 59... Rh5+ {[%clk 0:00:09.9]} 60. Rd5 {[%clk 0:00:18.6]}
60... b6+ {[%clk 0:00:07.5]} 61. axb6 {[%clk 0:00:16.8]} 61... Rh8 {[%clk
0:00:09]} 62. Rd6 {[%clk 0:00:12.9]} 62... Rc8+ {[%clk 0:00:09.2]} 63. Rc6
{[%clk 0:00:14.1]} 63... Rh8 {[%clk 0:00:10.9]} 64. Rc7 {[%clk 0:00:14.9]} 64...
Rh5+ {[%clk 0:00:11.5]} 65. Kb4 {[%clk 0:00:16]} 65... Rh1 {[%clk 0:00:12.2]}
66. Rg7 {[%clk 0:00:16.1]} 66... Rb1+ {[%clk 0:00:12.9]} 67. Kc5 {[%clk
0:00:17.5]} 67... Rc1+ {[%clk 0:00:14.3]} 68. Kd5 {[%clk 0:00:18.9]} 68... Rd1+
{[%clk 0:00:15.6]} 69. Kc5 {[%clk 0:00:20.2]} 69... Rc1+ {[%clk 0:00:16.8]} 70.
Kb4 {[%clk 0:00:21.3]} 70... Rb1+ {[%clk 0:00:18]} 71. Kc5 {[%clk 0:00:21.7]}
71... Rc1+ {[%clk 0:00:19.3]} 1/2-1/2

[Event "*** Titled Tuesday Blitz"]
[Site "Chess.com"]
[Date "2020.01.07"]
[Round "8"]
[White "MathiasWomacka"]
[Black "SirMittensofMittensville"]
[Result "1-0"]
[WhiteElo "2385"]
[BlackElo "2549"]
[TimeControl "180+2"]
[EndTime "14:57:38 PST"]
[Termination "MathiasWomacka won by resignation"]

1. e4 {[%clk 0:02:59.3]} 1... e5 {[%clk 0:03:01.3]} 2. Nf3 {[%clk 0:02:59.8]}
2... Nc6 {[%clk 0:03:03]} 3. Bc4 {[%clk 0:03:00.6]} 3... Bc5 {[%clk 0:03:03.8]}
4. O-O {[%clk 0:02:59.3]} 4... Nf6 {[%clk 0:03:04.8]} 5. d3 {[%clk 0:03:00.3]}
5... O-O {[%clk 0:03:06.1]} 6. h3 {[%clk 0:02:59]} 6... d5 {[%clk 0:03:04.6]} 7.
exd5 {[%clk 0:02:58.9]} 7... Nxd5 {[%clk 0:03:06.5]} 8. Re1 {[%clk 0:03:00.1]}
8... Nb6 {[%clk 0:02:54.2]} 9. Bb3 {[%clk 0:03:00.3]} 9... h6 {[%clk 0:02:31.1]}
10. a4 {[%clk 0:02:57.1]} 10... a5 {[%clk 0:02:26.6]} 11. Nc3 {[%clk 0:02:52.1]}
11... Re8 {[%clk 0:02:24.3]} 12. Nb5 {[%clk 0:02:51.5]} 12... Bf5 {[%clk
0:02:16.7]} 13. Be3 {[%clk 0:02:37.9]} 13... Bb4 {[%clk 0:01:58.6]} 14. c3
{[%clk 0:02:25.5]} 14... Bf8 {[%clk 0:01:57.2]} 15. d4 {[%clk 0:02:22.7]} 15...
e4 {[%clk 0:01:38.3]} 16. Nd2 {[%clk 0:02:23.5]} 16... Qd7 {[%clk 0:01:30.2]}
17. Bf4 {[%clk 0:02:19.6]} 17... Rac8 {[%clk 0:01:30.8]} 18. Bg3 {[%clk
0:02:12]} 18... Bd6 {[%clk 0:01:22.6]} 19. Nxd6 {[%clk 0:01:59.2]} 19... cxd6
{[%clk 0:01:23.9]} 20. d5 {[%clk 0:01:55.6]} 20... Nb8 {[%clk 0:01:14.9]} 21.
Nf1 {[%clk 0:01:53.7]} 21... Na6 {[%clk 0:01:14.1]} 22. Bc2 {[%clk 0:01:49]}
22... Nc5 {[%clk 0:00:56.1]} 23. Ne3 {[%clk 0:01:35.3]} 23... Bg6 {[%clk
0:00:56.2]} 24. Qd4 {[%clk 0:01:31.2]} 24... f5 {[%clk 0:00:54.1]} 25. Bf4
{[%clk 0:01:05.1]} 25... Bf7 {[%clk 0:00:43.4]} 26. h4 {[%clk 0:01:05.7]} 26...
Bg6 {[%clk 0:00:40.1]} 27. Ra3 {[%clk 0:00:40.7]} 27... Kh7 {[%clk 0:00:39]} 28.
b4 {[%clk 0:00:36.6]} 28... axb4 {[%clk 0:00:38.4]} 29. cxb4 {[%clk 0:00:37.8]}
29... Ncxa4 {[%clk 0:00:39.9]} 30. Rea1 {[%clk 0:00:37.8]} 30... Rxc2 {[%clk
0:00:38.4]} 31. Nxc2 {[%clk 0:00:37.8]} 31... Rc8 {[%clk 0:00:40.3]} 32. Ne3
{[%clk 0:00:38.1]} 32... Bf7 {[%clk 0:00:37.8]} 33. Qd2 {[%clk 0:00:28.9]} 33...
Bg6 {[%clk 0:00:34.6]} 34. Rc1 {[%clk 0:00:29.7]} 34... Bf7 {[%clk 0:00:31.6]}
35. Rxc8 {[%clk 0:00:29.9]} 35... Qxc8 {[%clk 0:00:33.5]} 36. Bxd6 {[%clk
0:00:31]} 36... Qd8 {[%clk 0:00:23.4]} 37. Be5 {[%clk 0:00:29.5]} 37... Qxh4
{[%clk 0:00:22.2]} 38. Qd4 {[%clk 0:00:26.5]} 38... Qg5 {[%clk 0:00:21.6]} 39.
g3 {[%clk 0:00:26.5]} 39... Qg6 {[%clk 0:00:19.9]} 40. d6 {[%clk 0:00:27.2]}
40... Be8 {[%clk 0:00:20.5]} 41. Ra1 {[%clk 0:00:25.4]} 41... Bd7 {[%clk
0:00:21.1]} 42. Rc1 {[%clk 0:00:26.2]} 42... Qf7 {[%clk 0:00:21.6]} 43. Rc7
{[%clk 0:00:27]} 43... Qe6 {[%clk 0:00:21.5]} 44. Bxg7 {[%clk 0:00:26.5]} 44...
Kg6 {[%clk 0:00:23.1]} 45. Bh8 {[%clk 0:00:26.4]} 45... Qf7 {[%clk 0:00:24.7]}
46. Qe5 {[%clk 0:00:26.4]} 46... Kh5 {[%clk 0:00:22]} 47. Bf6 {[%clk 0:00:25.3]}
47... Kg6 {[%clk 0:00:23.1]} 48. Be7 {[%clk 0:00:26]} 48... Kh5 {[%clk
0:00:21.5]} 49. g4+ {[%clk 0:00:26.3]} 49... Kg6 {[%clk 0:00:21.1]} 50. gxf5+
{[%clk 0:00:27.4]} 50... Bxf5 {[%clk 0:00:22.4]} 51. Nxf5 {[%clk 0:00:27.5]}
51... Qxf5 {[%clk 0:00:24.3]} 52. Qxf5+ {[%clk 0:00:28.5]} 52... Kxf5 {[%clk
0:00:26.2]} 53. Rxb7 {[%clk 0:00:30]} 53... Ke6 {[%clk 0:00:26.5]} 54. Bd8
{[%clk 0:00:29.5]} 54... Nd7 {[%clk 0:00:27.5]} 55. Be7 {[%clk 0:00:29.5]} 55...
Nc3 {[%clk 0:00:29.1]} 56. Kg2 {[%clk 0:00:29.6]} 56... Nd5 {[%clk 0:00:29.9]}
57. Kg3 {[%clk 0:00:28.7]} 57... Nc3 {[%clk 0:00:29.4]} 58. Kg4 {[%clk
0:00:28.1]} 58... Nd5 {[%clk 0:00:29.7]} 59. Kh5 {[%clk 0:00:28.4]} 59... Nf4+
{[%clk 0:00:30.9]} 60. Kxh6 {[%clk 0:00:29.4]} 60... Nd3 {[%clk 0:00:32.8]} 61.
Bh4 {[%clk 0:00:28.3]} 61... Kxd6 {[%clk 0:00:33]} 62. Bg3+ {[%clk 0:00:29.4]}
62... Ke6 {[%clk 0:00:33.7]} 63. Kg5 {[%clk 0:00:30.3]} 63... Nb2 {[%clk
0:00:25]} 64. b5 {[%clk 0:00:30]} 64... Nc4 {[%clk 0:00:24.5]} 65. Kf4 {[%clk
0:00:30.4]} 65... Nf6 {[%clk 0:00:25.4]} 66. Bh4 {[%clk 0:00:29.2]} 66... Nd5+
{[%clk 0:00:24.9]} 67. Kg4 {[%clk 0:00:29.6]} 67... Ne5+ {[%clk 0:00:24.3]} 68.
Kg3 {[%clk 0:00:29.9]} 68... Nc4 {[%clk 0:00:23.9]} 69. Rb8 {[%clk 0:00:29.8]}
69... Nd6 {[%clk 0:00:24.2]} 70. Bg5 {[%clk 0:00:28.6]} 70... Nc4 {[%clk
0:00:22.5]} 71. Bf4 {[%clk 0:00:27.5]} 71... Na5 {[%clk 0:00:19.2]} 72. Ra8
{[%clk 0:00:26.8]} 72... Nc4 {[%clk 0:00:19.9]} 73. Ra6+ {[%clk 0:00:27.6]}
73... Kf5 {[%clk 0:00:20.7]} 74. Bc1 {[%clk 0:00:28]} 74... Ke5 {[%clk
0:00:19.8]} 75. Rc6 {[%clk 0:00:27.2]} 75... Na5 {[%clk 0:00:20.2]} 76. Bb2+
{[%clk 0:00:23.4]} 76... Kf5 {[%clk 0:00:21.5]} 77. Ra6 {[%clk 0:00:24.3]} 77...
Nc4 {[%clk 0:00:22.2]} 78. Bd4 {[%clk 0:00:25.3]} 78... Nb4 {[%clk 0:00:21.6]}
79. Ra7 {[%clk 0:00:24.4]} 79... Nd5 {[%clk 0:00:22.7]} 80. Rd7 {[%clk
0:00:23.6]} 80... Nf4 {[%clk 0:00:23.7]} 81. b6 {[%clk 0:00:23.2]} 81... Na5
{[%clk 0:00:22.6]} 82. b7 {[%clk 0:00:23.1]} 82... Nxb7 {[%clk 0:00:23.2]} 83.
Rf7+ {[%clk 0:00:23.8]} 83... Kg5 {[%clk 0:00:21.7]} 84. Rxf4 {[%clk 0:00:24.5]}
84... Nd6 {[%clk 0:00:23.3]} 85. Rf8 {[%clk 0:00:22.5]} 85... Nf5+ {[%clk
0:00:24.3]} 86. Rxf5+ {[%clk 0:00:23]} 86... Kxf5 {[%clk 0:00:26.2]} 87. Be3
{[%clk 0:00:24.4]} 1-0

[Event "*** Titled Tuesday Blitz"]
[Site "Chess.com"]
[Date "2020.01.07"]
[Round "8"]
[White "wild_cat99"]
[Black "riconaipe"]
[Result "1/2-1/2"]
[WhiteElo "2422"]
[BlackElo "2570"]
[TimeControl "180+2"]
[EndTime "14:57:58 PST"]
[Termination "Game drawn - insufficient material"]

1. e4 {[%clk 0:03:01.3]} 1... c6 {[%clk 0:03:00.9]} 2. d4 {[%clk 0:03:01.6]}
2... d5 {[%clk 0:03:02.8]} 3. Nc3 {[%clk 0:03:02]} 3... dxe4 {[%clk 0:03:02.9]}
4. Nxe4 {[%clk 0:03:03.9]} 4... Nf6 {[%clk 0:03:04]} 5. Nxf6+ {[%clk 0:03:04.8]}
5... exf6 {[%clk 0:03:05]} 6. c3 {[%clk 0:03:05]} 6... Bd6 {[%clk 0:03:06.6]} 7.
Bd3 {[%clk 0:03:04.6]} 7... O-O {[%clk 0:03:08.5]} 8. Ne2 {[%clk 0:03:06.5]}
8... Re8 {[%clk 0:03:10]} 9. O-O {[%clk 0:03:07.2]} 9... Bg4 {[%clk 0:03:09.4]}
10. f3 {[%clk 0:03:07.3]} 10... Bh5 {[%clk 0:03:10.6]} 11. Bf4 {[%clk
0:03:05.9]} 11... Bg6 {[%clk 0:03:01.8]} 12. Bxg6 {[%clk 0:03:00.6]} 12... hxg6
{[%clk 0:03:02.6]} 13. Qd2 {[%clk 0:02:57.5]} 13... Rxe2 {[%clk 0:02:59.5]} 14.
Qxe2 {[%clk 0:02:58.8]} 14... Bxf4 {[%clk 0:03:00.6]} 15. Qe4 {[%clk 0:02:58.8]}
15... Bd6 {[%clk 0:02:54.3]} 16. c4 {[%clk 0:02:56]} 16... Nd7 {[%clk
0:02:53.3]} 17. c5 {[%clk 0:02:57]} 17... Bc7 {[%clk 0:02:53.6]} 18. b4 {[%clk
0:02:53]} 18... Nf8 {[%clk 0:02:52.6]} 19. Rad1 {[%clk 0:02:46]} 19... f5 {[%clk
0:02:52.9]} 20. Qd3 {[%clk 0:02:13.3]} 20... Qd5 {[%clk 0:02:50]} 21. Qb3 {[%clk
0:02:11.7]} 21... Rd8 {[%clk 0:02:49.9]} 22. Qxd5 {[%clk 0:02:04.8]} 22... Rxd5
{[%clk 0:02:50.8]} 23. Rd3 {[%clk 0:02:05.8]} 23... Ne6 {[%clk 0:02:51.4]} 24.
Rfd1 {[%clk 0:02:07]} 24... a6 {[%clk 0:02:51.9]} 25. g3 {[%clk 0:02:03.9]}
25... g5 {[%clk 0:02:52.4]} 26. a3 {[%clk 0:01:50.7]} 26... g4 {[%clk
0:02:52.3]} 27. f4 {[%clk 0:01:50.7]} 27... g5 {[%clk 0:02:53.3]} 28. fxg5
{[%clk 0:01:47.8]} 28... Nxg5 {[%clk 0:02:54.4]} 29. Kg2 {[%clk 0:01:48.8]}
29... Ne4 {[%clk 0:02:47.8]} 30. Rf1 {[%clk 0:01:47.9]} 30... Bd8 {[%clk
0:02:43.1]} 31. h3 {[%clk 0:01:47.7]} 31... gxh3+ {[%clk 0:02:35.1]} 32. Kxh3
{[%clk 0:01:49.6]} 32... Bf6 {[%clk 0:02:34.6]} 33. Rf4 {[%clk 0:01:47.1]} 33...
Bxd4 {[%clk 0:02:33.7]} 34. Kg2 {[%clk 0:01:36.9]} 34... Be5 {[%clk 0:02:10.1]}
35. Rxd5 {[%clk 0:01:36.3]} 35... cxd5 {[%clk 0:02:11.5]} 36. Rxf5 {[%clk
0:01:37.1]} 36... f6 {[%clk 0:02:12]} 37. Rf1 {[%clk 0:01:34.4]} 37... Kf7
{[%clk 0:02:12.4]} 38. g4 {[%clk 0:01:32.1]} 38... Ke6 {[%clk 0:02:09.9]} 39.
Re1 {[%clk 0:01:24.2]} 39... Ng5 {[%clk 0:02:02.2]} 40. Kf2 {[%clk 0:01:12.4]}
40... d4 {[%clk 0:01:59.2]} 41. Ke2 {[%clk 0:01:13.7]} 41... Kd5 {[%clk
0:01:58]} 42. Kd3 {[%clk 0:01:14.4]} 42... Nh3 {[%clk 0:01:57.9]} 43. Rf1 {[%clk
0:01:13.8]} 43... Nf4+ {[%clk 0:01:57.4]} 44. Kd2 {[%clk 0:01:15.1]} 44... d3
{[%clk 0:01:43.2]} 45. Ke3 {[%clk 0:01:14.8]} 45... Kc4 {[%clk 0:01:36.9]} 46.
Rc1+ {[%clk 0:01:13.8]} 46... Bc3 {[%clk 0:01:23.6]} 47. Kxf4 {[%clk 0:01:12.2]}
47... d2 {[%clk 0:01:24.9]} 48. Rh1 {[%clk 0:01:03.6]} 48... Kd3 {[%clk
0:01:23.1]} 49. Kf3 {[%clk 0:01:02.8]} 49... Bb2 {[%clk 0:01:10.3]} 50. a4
{[%clk 0:01:03]} 50... Ba3 {[%clk 0:01:11.1]} 51. b5 {[%clk 0:01:02.8]} 51...
axb5 {[%clk 0:01:02.3]} 52. axb5 {[%clk 0:01:04.7]} 52... Bxc5 {[%clk
0:01:03.6]} 53. Rd1 {[%clk 0:00:50.6]} 53... b6 {[%clk 0:01:02.7]} 54. Rh1
{[%clk 0:00:50]} 54... Be3 {[%clk 0:00:55.2]} 55. Rd1 {[%clk 0:00:47.6]} 55...
Bg5 {[%clk 0:00:56.5]} 56. Rh1 {[%clk 0:00:48.1]} 56... Bh4 {[%clk 0:00:49.8]}
57. Rd1 {[%clk 0:00:46.6]} 57... Be1 {[%clk 0:00:41.2]} 58. Ra1 {[%clk
0:00:47.4]} 58... Kc4 {[%clk 0:00:38.8]} 59. Ke2 {[%clk 0:00:48.4]} 59... Kxb5
{[%clk 0:00:39.9]} 60. Rb1+ {[%clk 0:00:43.7]} 60... Kc5 {[%clk 0:00:40.5]} 61.
Rb3 {[%clk 0:00:40.1]} 61... b5 {[%clk 0:00:22.3]} 62. Rf3 {[%clk 0:00:41.2]}
62... Bh4 {[%clk 0:00:17.3]} 63. Rf5+ {[%clk 0:00:34.7]} 63... Kc4 {[%clk
0:00:16.7]} 64. Kxd2 {[%clk 0:00:35.7]} 64... b4 {[%clk 0:00:16.1]} 65. Rf4+
{[%clk 0:00:28.6]} 65... Kb3 {[%clk 0:00:14.5]} 66. Kd3 {[%clk 0:00:29.6]} 66...
Bg5 {[%clk 0:00:12.6]} 67. Rc4 {[%clk 0:00:23.5]} 67... Bh4 {[%clk 0:00:11.4]}
68. Rc6 {[%clk 0:00:23.8]} 68... Bg5 {[%clk 0:00:10.9]} 69. Rb6 {[%clk
0:00:23.9]} 69... Bh4 {[%clk 0:00:12.2]} 70. Rb7 {[%clk 0:00:18.8]} 70... Bg5
{[%clk 0:00:13.1]} 71. Kd4 {[%clk 0:00:17.4]} 71... Bh4 {[%clk 0:00:07.6]} 72.
Kc5 {[%clk 0:00:15.9]} 72... Bf2+ {[%clk 0:00:08.8]} 73. Kb5 {[%clk 0:00:15.7]}
73... Kc3 {[%clk 0:00:09.9]} 74. Ka4 {[%clk 0:00:16.1]} 74... Bc5 {[%clk
0:00:07.6]} 75. Rb5 {[%clk 0:00:16.2]} 75... Kc4 {[%clk 0:00:06.2]} 76. Rb7
{[%clk 0:00:16.1]} 76... Bd6 {[%clk 0:00:07.3]} 77. Rb6 {[%clk 0:00:15.2]} 77...
Kd5 {[%clk 0:00:06.7]} 78. Rb5+ {[%clk 0:00:15]} 78... Ke4 {[%clk 0:00:07.2]}
79. Rf5 {[%clk 0:00:10]} 79... Be7 {[%clk 0:00:08.1]} 80. Rb5 {[%clk 0:00:11.1]}
80... Kf4 {[%clk 0:00:09]} 81. Rb6 {[%clk 0:00:06.7]} 81... Kxg4 {[%clk
0:00:09.7]} 82. Re6 {[%clk 0:00:07.6]} 82... Bd8 {[%clk 0:00:09.6]} 83. Kxb4
{[%clk 0:00:08.4]} 83... f5 {[%clk 0:00:10.5]} 84. Re5 {[%clk 0:00:07.7]} 84...
f4 {[%clk 0:00:11.1]} 85. Re4 {[%clk 0:00:08.7]} 85... Kf3 {[%clk 0:00:12.3]}
86. Rxf4+ {[%clk 0:00:10.1]} 86... Kxf4 {[%clk 0:00:13.8]} 1/2-1/2